lending/lending_fUSD_20260328
["ID","MTS","AMOUNT","RATE_DAILY","PERIOD"]
[418975887,1774703375673,-179.18660349,0.0004274,120]
[418975888,1774703375701,-223.02634997,0.00042751,30]
[418975889,1774703375729,-150.0,0.00042752,30]
[418975890,1774703375757,-150.0,0.00042752,30]
[418975891,1774703375784,-205.96,0.00042753,120]
[418975892,1774703375810,-150.0,0.00042756,30]
[418975893,1774703375837,-150.0,0.00042789,30]
[418975894,1774703375864,-368.68334,0.00042793,30]
[418975895,1774703375891,-150.0,0.00042798,30]
[418975896,1774703375918,-223.02634997,0.00042798,30]
[418975897,1774703375946,-150.0,0.00042816,30]
[418975898,1774703375972,-150.0,0.00042816,30]
[418975899,1774703375999,-150.0,0.00042833,30]
[418975900,1774703376025,-150.0,0.00042841,30]
[418975901,1774703376051,-223.02634997,0.00042846,30]
[418975902,1774703376077,-150.0,0.00042853,30]
[418975903,1774703376103,-1093.98,0.00042854,30]
[418975904,1774703376129,-2187.96,0.00042854,30]
[418975905,1774703376157,-1369.89,0.00042854,30]
[418975906,1774703376183,-183.06,0.0004286,120]
[418975907,1774703376209,-150.0,0.00042879,30]
[418975908,1774703376236,-150.0,0.00042879,30]
[418975909,1774703376263,-150.0,0.00042884,30]
[418975910,1774703376289,-150.0,0.00042893,30]
[418975911,1774703376316,-223.02634997,0.00042893,30]
[418975912,1774703376343,-150.0,0.0004291,30]
[418975913,1774703376369,-223.02634997,0.00042941,30]
[418975914,1774703376396,-150.0,0.00042943,30]
[418975915,1774703376423,-150.0,0.00042943,30]
[418975916,1774703376450,-206.0,0.0004295,30]
[418975917,1774703376477,-150.0,0.00042969,30]
[418975918,1774703376506,-1488.45,0.0004297,30]
[418975919,1774703376535,-150.0,0.00042974,30]
[418975920,1774703376562,-150.0,0.00042988,30]
[418975921,1774703376591,-223.02634997,0.00042988,30]
[418975922,1774703376618,-166.45186308,0.0004299,60]
[418975923,1774703376645,-368.68334,0.00042993,30]
[418975924,1774703376672,-379.49,0.00042995,90]
[418975925,1774703376699,-150.0,0.00042998,30]
[418975926,1774703376725,-150.0,0.00042998,30]
[418975927,1774703376752,-62362.66988483,0.00043,120]
[418975928,1774703376779,-50000.0,0.00043,30]
[418975929,1774703376807,-7808.0,0.00043,120]
[418975930,1774703376833,-722.10624698,0.00043,120]
[418975931,1774703376860,-179.14811775,0.00043,120]
[418975932,1774703376886,-3121.2,0.00043,120]
[418975933,1774703376914,-2601.0,0.00043,120]
[418975934,1774703376941,-2522.03,0.00043,30]
[418975935,1774703376969,-150.0,0.00043006,30]
[418975936,1774703376999,-150.0,0.00043006,30]
[418975937,1774703377029,-205.96,0.00043027,120]
[418975938,1774703377058,-223.02634997,0.00043036,30]
[418975939,1774703377085,-1095.3,0.00043045,30]
[418975940,1774703377113,-150.0,0.00043055,30]
[418975941,1774703377140,-150.0,0.00043065,30]
[418975942,1774703377168,-150.0,0.0004307,30]
[418975943,1774703377195,-150.0,0.0004307,30]
[418975944,1774703377221,-223.02634997,0.00043084,30]
[418975945,1774703377247,-150.0,0.00043094,30]
[418975946,1774703377274,-1094.31767478,0.000431,120]
[418975947,1774703377302,-150.0,0.00043103,30]
[418975948,1774703377330,-223.02634997,0.00043131,30]
[418975949,1774703377358,-150.0,0.00043134,30]
[418975950,1774703377384,-150.0,0.00043134,30]
[418975951,1774703377411,-150.0,0.00043141,30]
[418975952,1774703377437,-150.0,0.00043142,30]
[418975953,1774703377465,-250.0,0.00043144,120]
[418975954,1774703377492,-151.0,0.00043144,60]
[418975955,1774703377518,-150.0,0.00043155,30]
[418975956,1774703377544,-150.0,0.00043155,30]
[418975957,1774703377572,-223.02634997,0.00043179,30]
[418975958,1774703377599,-368.68334,0.00043193,30]
[418975959,1774703377626,-150.0,0.00043197,30]
[418975960,1774703377653,-150.0,0.00043197,30]
[418975961,1774703377682,-157.0,0.000432,120]
[418975962,1774703377710,-150.0,0.00043207,30]
[418975963,1774703377738,-150.0,0.00043215,30]
[418975964,1774703377766,-150.0,0.00043219,30]
[418975965,1774703377793,-150.0,0.00043226,30]
[418975966,1774703377820,-223.02634997,0.00043226,30]
[418975967,1774703377847,-150.0,0.00043261,30]
[418975968,1774703377874,-150.0,0.00043261,30]
[418975969,1774703377900,-223.02634997,0.00043274,30]
[418975970,1774703377928,-150.0,0.00043296,30]
[418975971,1774703377957,-205.96,0.00043301,120]
[418975972,1774703377984,-1447.16,0.00043309,120]
[418975973,1774703378012,-150.0,0.00043312,30]
[418975974,1774703378178,-150.0,0.00043312,30]
[418975975,1774703378206,-150.0,0.00043312,30]
[418975976,1774703378234,-150.0,0.00043312,30]
[418975977,1774703378263,-150.0,0.00043315,30]
[418975978,1774703378291,-223.02634997,0.00043321,30]
[418975979,1774703378319,-150.0,0.00043324,30]
[418975980,1774703378345,-150.0,0.00043324,30]
[418975981,1774703378371,-150.0,0.00043336,30]
[418975982,1774703378398,-1095.3,0.00043362,30]
[418975983,1774703378426,-223.02634997,0.00043369,30]
[418975984,1774703378453,-150.0,0.00043374,30]
[418975985,1774703378480,-150.0,0.00043388,30]
[418975986,1774703378508,-150.0,0.00043388,30]
[418975987,1774703378537,-368.68334,0.00043393,30]
[418975988,1774703378564,-150.0,0.00043397,30]
[418975989,1774703378592,-150.0,0.00043416,30]
[418975990,1774703378620,-223.02634997,0.00043416,30]
[418975991,1774703378648,-150.0,0.00043451,30]
[418975992,1774703378675,-150.0,0.00043452,30]
[418975993,1774703378703,-150.0,0.00043452,30]
[418975994,1774703378730,-150.0,0.00043457,30]
[418975995,1774703378758,-223.02634997,0.00043464,30]
[418975996,1774703378785,-150.0,0.00043469,30]
[418975997,1774703378814,-150.0,0.00043483,30]
[418975998,1774703378841,-225.65201719,0.000435,120]
[418975999,1774703378868,-3183.62,0.000435,120]
[418976000,1774703378894,-2653.02,0.000435,120]
[418976001,1774703378927,-223.02634997,0.00043511,30]
[418976002,1774703378955,-150.0,0.00043515,30]
[418976003,1774703378983,-150.0,0.00043515,30]
[418976004,1774703379010,-150.0,0.00043521,30]
[418976005,1774703379037,-150.0,0.00043528,30]
[418976006,1774703379063,-150.0,0.00043547,30]
[418976007,1774703379097,-223.02634997,0.00043559,30]
[418976008,1774703379125,-150.0,0.00043569,30]
[418976009,1774703379153,-205.96,0.00043575,120]
[418976010,1774703379181,-150.0,0.00043577,30]
[418976011,1774703379208,-150.0,0.00043579,30]
[418976012,1774703379236,-150.0,0.00043579,30]
[418976013,1774703379265,-368.68334,0.00043593,30]
[418976014,1774703379294,-1214.72,0.000436,120]
[418976015,1774703379321,-150.0,0.00043605,30]
[418976016,1774703379350,-223.02634997,0.00043607,30]
[418976017,1774703379377,-150.0,0.00043626,30]
[418976018,1774703379405,-150.0,0.00043626,30]
[418976019,1774703379433,-150.0,0.00043643,30]
[418976020,1774703379461,-150.0,0.00043643,30]
[418976021,1774703379491,-185823.0,0.0004365,60]
[418976022,1774703379519,-150.0,0.00043654,30]
[418976023,1774703379548,-223.02634997,0.00043654,30]
[418976024,1774703379577,-1095.3,0.00043678,30]
[418976025,1774703379605,-150.0,0.00043682,30]
[418976026,1774703379634,-150.0,0.00043698,30]
[418976027,1774703379662,-155.0,0.000437,120]
[418976028,1774703379689,-235.91064861,0.000437,120]
[418976029,1774703379719,-223.02634997,0.00043702,30]
[418976030,1774703379748,-150.0,0.00043706,30]
[418976031,1774703379775,-150.0,0.00043706,30]
[418976032,1774703379801,-150.0,0.0004373,30]
[418976033,1774703379829,-150.0,0.0004374,30]
[418976034,1774703379858,-223.02634997,0.00043749,30]
[418976035,1774703379885,-150.0,0.00043759,30]
[418976036,1774703379912,-3946.39,0.00043767,30]
[418976037,1774703379939,-3946.39,0.00043767,30]
[418976038,1774703379967,-3946.39,0.00043767,30]
[418976039,1774703379995,-3946.39,0.00043767,30]
[418976040,1774703380025,-150.0,0.0004377,30]
[418976041,1774703380053,-150.0,0.0004377,30]
[418976042,1774703380081,-150.0,0.00043783,30]
[418976043,1774703380110,-368.68334,0.00043793,30]
[418976044,1774703380140,-223.02634997,0.00043797,30]
[418976045,1774703380168,-1000.0,0.000438,120]
[418976046,1774703380196,-198.61391805,0.000438,120]
[418976047,1774703380223,-264.98634747,0.00043808,120]
[418976048,1774703380257,-300.0,0.00043808,120]
[418976049,1774703380286,-300.0,0.00043808,120]
[418976050,1774703380315,-300.0,0.00043808,120]
[418976051,1774703380343,-300.0,0.00043808,120]
[418976052,1774703380372,-300.0,0.00043808,120]
[418976053,1774703380402,-300.0,0.00043808,120]
[418976054,1774703380431,-300.0,0.00043808,120]
[418976055,1774703380459,-300.0,0.00043808,120]
[418976056,1774703380487,-300.0,0.00043808,120]
[418976057,1774703380514,-300.0,0.00043808,120]
[418976058,1774703380543,-300.0,0.00043808,120]
[418976059,1774703380572,-300.0,0.00043808,120]
[418976060,1774703380600,-300.0,0.00043808,120]
[418976061,1774703380630,-300.0,0.00043808,120]
[418976062,1774703380658,-300.0,0.00043808,120]
[418976063,1774703380686,-300.0,0.00043808,120]
[418976064,1774703380715,-300.0,0.00043808,120]
[418976065,1774703380744,-300.0,0.00043808,120]
[418976066,1774703380774,-300.0,0.00043808,120]
[418976067,1774703380980,-300.0,0.00043808,120]
[418976068,1774703381009,-300.0,0.00043808,120]
[418976069,1774703381038,-300.0,0.00043808,120]
[418976070,1774703381067,-300.0,0.00043808,120]
[418976071,1774703381095,-300.0,0.00043808,120]
[418976072,1774703381123,-300.0,0.00043808,120]
[418976073,1774703381152,-300.0,0.00043808,120]
[418976074,1774703381180,-300.0,0.00043808,120]
[418976075,1774703381208,-300.0,0.00043808,120]
[418976076,1774703381236,-300.0,0.00043808,120]
[418976077,1774703381263,-300.0,0.00043808,120]
[418976078,1774703381293,-300.0,0.00043808,120]
[418976079,1774703381321,-300.0,0.00043808,120]
[418976080,1774703381349,-300.0,0.00043808,120]
[418976081,1774703381376,-300.0,0.00043808,120]
[418976082,1774703381404,-300.0,0.00043808,120]
[418976083,1774703381432,-300.0,0.00043808,120]
[418976084,1774703381461,-300.0,0.00043808,120]
[418976085,1774703381489,-300.0,0.00043808,120]
[418976086,1774703381518,-300.0,0.00043808,120]
[418976087,1774703381547,-300.0,0.00043808,120]
[418976088,1774703381575,-300.0,0.00043808,120]
[418976089,1774703381605,-300.0,0.00043808,120]
[418976090,1774703381634,-300.0,0.00043808,120]
[418976091,1774703381662,-300.0,0.00043808,120]
[418976092,1774703381696,-300.0,0.00043808,120]
[418976093,1774703381727,-300.0,0.00043808,120]
[418976094,1774703381757,-300.0,0.00043808,120]
[418976095,1774703381787,-300.0,0.00043808,120]
[418976096,1774703381817,-300.0,0.00043808,120]
[418976097,1774703381846,-357.0,0.00043808,120]
[418976098,1774703381875,-357.0,0.00043808,120]
[418976099,1774703381903,-357.0,0.00043808,120]
[418976100,1774703381932,-357.0,0.00043808,120]
[418976101,1774703381963,-357.0,0.00043808,120]
[418976102,1774703381993,-357.0,0.00043808,120]
[418976103,1774703382023,-357.0,0.00043808,120]
[418976104,1774703382052,-357.0,0.00043808,120]
[418976105,1774703382082,-357.0,0.00043808,120]
[418976106,1774703382112,-357.0,0.00043808,120]
[418976107,1774703382142,-357.0,0.00043808,120]
[418976108,1774703382170,-300.0,0.00043808,120]
[418976109,1774703382200,-300.0,0.00043808,120]
[418976110,1774703382229,-300.0,0.00043808,120]
[418976111,1774703382258,-300.0,0.00043808,120]
[418976112,1774703382289,-300.0,0.00043808,120]
[418976113,1774703382319,-300.0,0.00043808,120]
[418976114,1774703382348,-300.0,0.00043808,120]
[418976115,1774703382375,-300.0,0.00043808,120]
[418976116,1774703382403,-300.0,0.00043808,120]
[418976117,1774703382432,-300.0,0.00043808,120]
[418976118,1774703382460,-300.0,0.00043808,120]
[418976119,1774703382489,-300.0,0.00043808,120]
[418976120,1774703382519,-300.0,0.00043808,120]
[418976121,1774703382547,-379.49,0.0004381,90]
[418976122,1774703382575,-150.0,0.00043819,30]
[418976123,1774703382603,-150.0,0.00043825,30]
[418976124,1774703382631,-150.0,0.00043833,30]
[418976125,1774703382660,-150.0,0.00043833,30]
[418976126,1774703382688,-150.0,0.00043835,30]
[418976127,1774703382719,-500.0,0.00043835,120]
[418976128,1774703382749,-500.0,0.00043835,120]
[418976129,1774703382777,-500.0,0.00043835,120]
[418976130,1774703382804,-222.76,0.00043835,120]
[418976131,1774703382836,-500.0,0.00043835,120]
[418976132,1774703382865,-500.0,0.00043835,120]
[418976133,1774703382894,-500.0,0.00043835,120]
[418976134,1774703382922,-222.76,0.00043835,120]
[418976135,1774703382950,-500.0,0.00043835,120]
[418976136,1774703382979,-500.0,0.00043835,120]
[418976137,1774703383006,-500.0,0.00043835,120]
[418976138,1774703383035,-500.0,0.00043835,120]
[418976139,1774703383065,-500.0,0.00043835,120]
[418976140,1774703383094,-500.0,0.00043835,120]
[418976141,1774703383124,-500.0,0.00043835,120]
[418976142,1774703383154,-502.60327591,0.00043835,120]
[418976143,1774703383194,-500.0,0.00043836,31]
[418976144,1774703383225,-500.0,0.00043836,31]
[418976145,1774703383257,-500.0,0.00043836,31]
[418976146,1774703383287,-500.0,0.00043836,31]
[418976147,1774703383317,-500.0,0.00043836,31]
[418976148,1774703383350,-266.21257285,0.00043836,31]
[418976149,1774703383383,-500.0,0.00043836,31]
[418976150,1774703383413,-500.0,0.00043836,31]
[418976151,1774703383445,-500.0,0.00043836,31]
[418976152,1774703383476,-500.0,0.00043836,31]
[418976153,1774703383507,-500.0,0.00043836,31]
[418976154,1774703383538,-500.0,0.00043836,31]
[418976155,1774703383696,-500.0,0.00043836,31]
[418976156,1774703383727,-500.0,0.00043836,31]
[418976157,1774703383759,-500.0,0.00043836,31]
[418976158,1774703383788,-500.0,0.00043836,31]
[418976159,1774703383818,-500.0,0.00043836,31]
[418976160,1774703383849,-458.2003418,0.00043836,31]
[418976161,1774703383878,-500.0,0.00043836,31]
[418976162,1774703383909,-500.0,0.00043836,31]
[418976163,1774703383940,-500.0,0.00043836,31]
[418976164,1774703383970,-500.0,0.00043836,31]
[418976165,1774703384001,-150.0,0.00043836,120]
[418976166,1774703384031,-150.0,0.00043836,120]
[418976167,1774703384060,-220.53240331,0.00043836,120]
[418976168,1774703384089,-150.0,0.00043837,30]
[418976169,1774703384118,-168.54,0.0004384,120]
[418976170,1774703384148,-223.02634997,0.00043844,30]
[418976171,1774703384177,-205.96,0.00043849,120]
[418976172,1774703384205,-176.49,0.0004385,30]
[418976173,1774703384234,-223.02634997,0.00043892,30]
[418976174,1774703384263,-833.14,0.00043894,30]
[418976175,1774703384289,-150.0,0.00043897,30]
[418976176,1774703384317,-150.0,0.00043897,30]
[418976177,1774703384344,-5066.0,0.000439,30]
[418976178,1774703384373,-150.0,0.00043911,30]
[418976179,1774703384400,-150.0,0.00043914,30]
[418976180,1774703384429,-150.0,0.00043939,30]
[418976181,1774703384458,-223.02634997,0.00043939,30]
[418976182,1774703384486,-150.0,0.00043939,30]
[418976183,1774703384514,-150.0,0.00043939,30]
[418976184,1774703384542,-150.0,0.00043939,30]
[418976185,1774703384570,-150.0,0.00043961,30]
[418976186,1774703384598,-150.0,0.00043961,30]
[418976187,1774703384626,-152.11,0.00043982,30]
[418976188,1774703384654,-223.02634997,0.00043987,30]
[418976189,1774703384682,-150.0,0.00043991,30]
[418976190,1774703384711,-368.68334,0.00043993,30]
[418976191,1774703384739,-1095.3,0.00043995,120]
[418976192,1774703384769,-150.0,0.00043997,30]
[418976193,1774703384797,-150.0,0.00044,120]
[418976194,1774703384825,-150.0,0.00044,120]
[418976195,1774703384853,-500.0,0.00044,120]
[418976196,1774703384880,-302.72041026,0.00044,120]
[418976197,1774703384907,-252.5170766,0.00044,120]
[418976198,1774703384935,-3247.29,0.00044,120]
[418976199,1774703384962,-2706.08,0.00044,120]
[418976200,1774703384990,-173.40719733,0.00044,120]
[418976201,1774703385017,-267.93396186,0.00044,120]
[418976202,1774703385045,-565.832793,0.00044,57]
[418976203,1774703385072,-150.0,0.00044024,30]
[418976204,1774703385101,-150.0,0.00044024,30]
[418976205,1774703385129,-223.02634997,0.00044035,30]
[418976206,1774703385156,-3946.39,0.00044041,30]
[418976207,1774703385183,-3946.39,0.00044041,30]
[418976208,1774703385213,-150.0,0.00044044,30]
[418976209,1774703385242,-150.0,0.0004406,30]
[418976210,1774703385271,-150.0,0.00044068,30]
[418976211,1774703385300,-150.0,0.00044082,30]
[418976212,1774703385329,-223.02634997,0.00044082,30]
[418976213,1774703385357,-150.0,0.00044088,30]
[418976214,1774703385386,-150.0,0.00044088,30]
[418976215,1774703385413,-150.0,0.00044096,30]
[418976216,1774703385441,-204.54103291,0.000441,120]
[418976217,1774703385470,-205.96,0.00044123,120]
[418976218,1774703385500,-223.02634997,0.0004413,30]
[418976219,1774703385528,-10000.0,0.00044143,120]
[418976220,1774703385556,-151.0,0.00044144,60]
[418976221,1774703385585,-150.0,0.00044145,30]
[418976222,1774703385614,-150.0,0.00044149,30]
[418976223,1774703385643,-150.0,0.00044152,30]
[418976224,1774703385673,-150.0,0.00044152,30]
[418976225,1774703385703,-191.69,0.00044155,120]
[418976226,1774703385731,-2177.46,0.00044158,120]
[418976227,1774703385759,-150.0,0.00044158,120]
[418976228,1774703385787,-150.0,0.00044168,30]
[418976229,1774703385817,-223.02634997,0.00044177,30]
[418976230,1774703385845,-150.0,0.00044181,30]
[418976231,1774703385873,-250.0,0.00044192,96]
[418976232,1774703385901,-368.68334,0.00044193,30]
[418976233,1774703385931,-150.0,0.00044215,30]
[418976234,1774703385959,-150.0,0.00044215,30]
[418976235,1774703385986,-150.0,0.00044222,30]
[418976236,1774703386015,-223.02634997,0.00044225,30]
[418976237,1774703386044,-647.74148083,0.00044253,30]
[418976238,1774703386071,-150.0,0.00044253,30]
[418976239,1774703386099,-150.0,0.00044253,30]
[418976240,1774703386127,-150.0,0.00044253,30]
[418976241,1774703386154,-150.0,0.00044253,30]
[418976242,1774703386298,-191.69,0.00044255,120]
[418976243,1774703386329,-223.02634997,0.00044272,30]
[418976244,1774703386359,-150.0,0.00044279,30]
[418976245,1774703386389,-150.0,0.00044279,30]
[418976246,1774703386419,-150.0,0.00044281,120]
[418976247,1774703386448,-150.0,0.000443,30]
[418976248,1774703386479,-1000.0,0.000443,120]
[418976249,1774703386508,-150.0,0.00044302,30]
[418976250,1774703386538,-1095.3,0.00044311,120]
[418976251,1774703386565,-3946.39,0.00044315,30]
[418976252,1774703386592,-3946.39,0.00044315,30]
[418976253,1774703386622,-223.02634997,0.0004432,30]
[418976254,1774703386650,-150.0,0.00044339,30]
[418976255,1774703386679,-150.0,0.00044342,30]
[418976256,1774703386708,-150.0,0.00044342,30]
[418976257,1774703386736,-4014.0,0.00044354,120]
[418976258,1774703386764,-4014.0,0.00044354,120]
[418976259,1774703386795,-191.69,0.00044355,120]
[418976260,1774703386822,-150.0,0.00044358,30]
[418976261,1774703386850,-4014.0,0.00044364,120]
[418976262,1774703386877,-4014.0,0.00044364,120]
[418976263,1774703386904,-4014.0,0.00044364,120]
[418976264,1774703386931,-4019.73,0.00044364,120]
[418976265,1774703386960,-223.02634997,0.00044367,30]
[418976266,1774703386989,-4014.0,0.00044374,120]
[418976267,1774703387017,-4014.0,0.00044374,120]
[418976268,1774703387045,-4014.0,0.00044374,120]
[418976269,1774703387073,-4014.0,0.00044374,120]
[418976270,1774703387101,-150.0,0.00044377,30]
[418976271,1774703387129,-368.68334,0.00044393,30]
[418976272,1774703387158,-205.96,0.00044397,120]
[418976273,1774703387186,-150.0,0.00044406,30]
[418976274,1774703387214,-150.0,0.00044406,30]
[418976275,1774703387242,-150.0,0.0004441,30]
[418976276,1774703387271,-223.02634997,0.00044415,30]
[418976277,1774703387299,-150.0,0.00044422,30]
[418976278,1774703387328,-150.0,0.00044425,30]
[418976279,1774703387357,-150.0,0.00044454,30]
[418976280,1774703387388,-191.69,0.00044455,120]
[418976281,1774703387416,-150.0,0.00044463,30]
[418976282,1774703387445,-223.02634997,0.00044463,30]
[418976283,1774703387472,-150.0,0.0004447,30]
[418976284,1774703387502,-150.0,0.0004447,30]
[418976285,1774703387530,-3312.24,0.000445,120]
[418976286,1774703387558,-2760.2,0.000445,120]
[418976287,1774703387587,-150.0,0.0004451,30]
[418976288,1774703387616,-223.02634997,0.0004451,30]
[418976289,1774703387645,-150.0,0.00044531,30]
[418976290,1774703387674,-150.0,0.00044533,30]
[418976291,1774703387702,-150.0,0.00044533,30]
[418976292,1774703387731,-150.0,0.00044543,30]
[418976293,1774703387761,-400.0,0.00044548,30]
[418976294,1774703387791,-400.0,0.00044548,30]
[418976295,1774703387820,-355.0,0.00044548,30]
[418976296,1774703387851,-191.69,0.00044555,120]
[418976297,1774703387880,-223.02634997,0.00044558,30]
[418976298,1774703387909,-1000.0,0.0004456,120]
[418976299,1774703387938,-150.0,0.00044566,120]
[418976300,1774703387965,-5487.67172562,0.00044567,31]
[418976301,1774703387994,-150.0,0.00044567,30]
[418976302,1774703388025,-150.0,0.00044567,30]
[418976303,1774703388058,-319.47253447,0.00044573,105]
[418976304,1774703388087,-250.0,0.00044586,120]
[418976305,1774703388114,-3946.39,0.00044589,30]
[418976306,1774703388142,-3946.39,0.00044589,30]
[418976307,1774703388169,-150.0,0.00044596,30]
[418976308,1774703388199,-150.0,0.00044597,30]
[418976309,1774703388227,-150.0,0.00044597,30]
[418976310,1774703388256,-170.91226151,0.000446,90]
[418976311,1774703388287,-1347.846,0.000446,120]
[418976312,1774703388317,-1347.846,0.000446,120]
[418976313,1774703388345,-1347.84,0.000446,120]
[418976314,1774703388374,-223.02634997,0.00044605,30]
[418976315,1774703388403,-150.0,0.00044608,30]
[418976316,1774703388430,-379.49,0.00044626,90]
[418976317,1774703388460,-1095.3,0.00044628,120]
[418976318,1774703388489,-223.02634997,0.00044653,30]
[418976319,1774703388521,-191.69,0.00044655,120]
[418976320,1774703388550,-150.0,0.0004466,30]
[418976321,1774703388579,-150.0,0.0004466,30]
[418976322,1774703388608,-150.0,0.00044664,30]
[418976323,1774703388639,-205.96,0.00044671,120]
[418976324,1774703388667,-150.0,0.00044672,30]
[418976325,1774703388817,-150.0,0.00044681,30]
[418976326,1774703388847,-150.0,0.00044686,30]
[418976327,1774703388876,-150.0,0.00044696,120]
[418976328,1774703388904,-150.34103368,0.00044696,120]
[418976329,1774703388931,-150.06492519,0.00044696,120]
[418976330,1774703388960,-207.55287553,0.000447,120]
[418976331,1774703388988,-1992.55,0.000447,120]
[418976332,1774703389017,-223.02634997,0.000447,30]
[418976333,1774703389044,-150.0,0.00044724,30]
[418976334,1774703389071,-150.0,0.00044724,30]
[418976335,1774703389100,-150.0,0.00044724,30]
[418976336,1774703389128,-150.0,0.00044724,30]
[418976337,1774703389158,-150.0,0.00044724,30]
[418976338,1774703389186,-150.0,0.00044724,30]
[418976339,1774703389214,-223.02634997,0.00044748,30]
[418976340,1774703389245,-191.69,0.00044755,120]
[418976341,1774703389274,-210.40762625,0.00044756,120]
[418976342,1774703389302,-150.0,0.00044763,30]
[418976343,1774703389331,-150.0,0.00044767,30]
[418976344,1774703389359,-150.0,0.00044776,30]
[418976345,1774703389388,-150.0,0.00044784,30]
[418976346,1774703389418,-150.0,0.00044788,30]
[418976347,1774703389446,-150.0,0.00044788,30]
[418976348,1774703389475,-223.02634997,0.00044795,30]
[418976349,1774703389504,-157.0,0.000448,120]
[418976350,1774703389534,-150.0,0.0004484,30]
[418976351,1774703389561,-223.02634997,0.00044843,30]
[418976352,1774703389591,-150.0,0.00044851,30]
[418976353,1774703389620,-150.0,0.00044851,30]
[418976354,1774703389650,-150.0,0.00044852,30]
[418976355,1774703389683,-191.69,0.00044855,120]
[418976356,1774703389711,-3946.39,0.00044863,30]
[418976357,1774703389739,-3946.39,0.00044863,30]
[418976358,1774703389768,-178.38193038,0.0004487,30]
[418976359,1774703389796,-158.05556521,0.0004487,30]
[418976360,1774703389823,-150.0,0.00044881,30]
[418976361,1774703389851,-150.0,0.00044881,30]
[418976362,1774703389880,-223.02634997,0.00044891,30]
[418976363,1774703389906,-25625.0,0.000449,30]
[418976364,1774703389935,-66730.13027715,0.000449,30]
[418976365,1774703389963,-367.4295312,0.000449,30]
[418976366,1774703389992,-150.0,0.00044905,30]
[418976367,1774703390021,-150.0,0.00044915,30]
[418976368,1774703390051,-150.0,0.00044915,30]
[418976369,1774703390079,-150.0,0.00044917,30]
[418976370,1774703390108,-151.0,0.00044932,120]
[418976371,1774703390137,-295.096187,0.00044932,120]
[418976372,1774703390166,-151.0,0.00044932,120]
[418976373,1774703390196,-211.601595,0.00044932,120]
[418976374,1774703390225,-290.200031,0.00044932,120]
[418976375,1774703390255,-157.209694,0.00044932,120]
[418976376,1774703390283,-151.0,0.00044932,120]
[418976377,1774703390312,-151.0,0.00044932,120]
[418976378,1774703390341,-165.408162,0.00044932,120]
[418976379,1774703390371,-166.784929,0.00044932,120]
[418976380,1774703390398,-151.0,0.00044932,120]
[418976381,1774703390426,-187.188834,0.00044932,120]
[418976382,1774703390454,-151.0,0.00044932,120]
[418976383,1774703390484,-151.0,0.00044932,120]
[418976384,1774703390512,-151.0,0.00044932,120]
[418976385,1774703390543,-160.486882,0.00044932,120]
[418976386,1774703390572,-267.325833,0.00044932,120]